bitfinex/quotes_SOLUSD_20250731
["timestamp","ask_amount","ask_price","bid_price","bid_amount"]
[1753989988967,50.09658689,176.19,176.18,9.92934091]
[1753989990711,50.76658689,176.19,176.18,1e-08]
[1753989990870,50.09658689,176.19,176.18,1e-08]
[1753989991708,50.76658689,176.19,176.18,1e-08]
[1753989991999,50.09658689,176.19,176.18,1e-08]
[1753989993402,77.48061176,176.19,176.18,1e-08]
[1753989993590,107.6382143,176.19,176.18,1e-08]
[1753989993791,117.6675553,176.19,176.18,1e-08]
[1753989993996,16.78468397,176.18,176.17,1e-08]
[1753989994195,35.29252329,176.18,176.17,1e-08]
[1753989994792,40.96853645,176.18,176.17,1e-08]
[1753989995308,45.64742986,176.18,176.16,1e-08]
[1753989995512,75.97252329,176.17,176.16,1e-08]
[1753989996303,81.64885864,176.17,176.16,1e-08]
[1753989997296,107.64885864,176.17,176.16,1e-08]
[1753989997491,81.64885864,176.17,176.16,1e-08]
[1753989999797,84.6105205,176.17,176.16,1e-08]
[1753990000698,101.6729405,176.17,176.16,1e-08]
[1753990000875,106.35183391,176.17,176.16,1e-08]
[1753990001275,101.6729405,176.17,176.16,1e-08]
[1753990001804,106.35183391,176.17,176.16,1e-08]
[1753990002180,101.6729405,176.17,176.16,1e-08]
[1753990002383,76.3835996,176.17,176.16,1e-08]
[1753990002612,126.9929405,176.17,176.16,1e-08]
[1753990002911,123.16356561,176.17,176.16,1e-08]
[1753990004302,123.84356561,176.17,176.16,1e-08]
[1753990004697,127.99406957,176.17,176.16,1e-08]
[1753990005081,121.21410356,176.17,176.16,1e-08]
[1753990005281,127.31406957,176.17,176.16,1e-08]
[1753990005678,104.42941959,176.17,176.16,1e-08]
[1753990005894,87.36699959,176.17,176.16,1e-08]
[1753990006094,83.20939705,176.17,176.16,0.69000001]
[1753990006402,83.20939705,176.17,176.16,1e-08]
[1753990008323,100.67408102,176.17,176.16,1e-08]
[1753990008498,84.92512204,176.17,176.16,1e-08]
[1753990008685,89.60401545,176.17,176.16,1e-08]
[1753990009089,84.92512204,176.17,176.16,1e-08]
[1753990010207,89.60401545,176.17,176.16,1e-08]
[1753990011010,93.45040474,176.17,176.16,1e-08]
[1753990012997,83.50453186,176.17,176.16,1e-08]
[1753990013199,88.77151133,176.17,176.16,1e-08]
[1753990013396,119.45040474,176.17,176.16,1e-08]
[1753990013598,78.09040474,176.17,176.16,1e-08]
[1753990013808,88.09151133,176.17,176.16,1e-08]
[1753990014218,114.77151133,176.17,176.16,1e-08]
[1753990014519,114.09151133,176.17,176.16,1e-08]
[1753990015405,88.77151133,176.17,176.16,1e-08]
[1753990015602,9.94587288,176.11,176.08,0.69]
[1753990015785,40.68,176.1,176.08,0.69]
[1753990015986,40.68,176.1,176.09,0.69]
[1753990017619,46.3585917,176.1,176.09,0.69]
[1753990017913,46.3585917,176.1,176.07,10.63587288]
[1753990018113,46.3585917,176.1,176.09,0.69]
[1753990018493,40.68,176.1,176.09,10.63587288]
[1753990018702,46.3585917,176.1,176.09,10.63587288]
[1753990018901,46.3585917,176.1,176.09,0.69]
[1753990020300,50.10352797,176.1,176.09,0.69]
[1753990020925,46.3585917,176.1,176.09,0.69]
[1753990021423,50.1056751,176.1,176.09,0.69]
[1753990021817,50.1056751,176.1,176.08,9.94587288]
[1753990021818,50.1056751,176.1,176.08,0.69]
[1753990022019,50.1056751,176.1,176.04,9.94587288]
[1753990022020,13.69126743,176.09,176.04,9.94587288]
[1753990022329,13.69126743,176.09,176.0,534.1]
[1753990022330,44.42642039,176.08,176.06,9.94587288]
[1753990022632,40.68,176.07,176.06,9.94587288]
[1753990022836,40.68,176.07,176.05,9.94587288]
[1753990023001,40.68,176.07,176.01,5.68144465]
[1753990023198,40.68,176.07,176.05,0.69]
[1753990023530,40.68,176.07,176.06,0.69]
[1753990023827,46.35955926,176.07,176.06,0.69]
[1753990025126,35.94587288,176.12,176.06,10.63587288]
[1753990025431,68.3742642,176.11,176.06,10.60587288]
[1753990025603,7.90790837,176.1,176.07,0.66]
[1753990025805,40.68,176.09,176.07,0.66]
[1753990026023,40.68,176.09,176.08,0.66]
[1753990026531,44.42532645,176.09,176.06,0.66]
[1753990026830,40.68,176.09,176.07,10.60587288]
[1753990027012,40.68,176.09,176.07,0.66]
[1753990027212,46.35900526,176.09,176.07,0.66]
[1753990027716,46.35900526,176.09,176.07,10.60587288]
[1753990028030,40.68,176.09,176.07,9.94587288]
[1753990028206,40.68,176.09,176.08,0.66]
[1753990028533,40.68,176.09,176.08,10.60587288]
[1753990029106,40.68,176.11,176.08,10.60587288]
[1753990029314,2.96189277,176.13,176.1,9.94587288]
[1753990029507,40.68,176.13,176.12,9.94587288]
[1753990029725,40.68,176.13,176.12,10.60587288]
[1753990030115,0.03,176.14,176.12,10.60587288]
[1753990030321,44.87315613,176.14,176.13,10.60587288]
[1753990030502,48.61975454,176.14,176.13,10.60587288]
[1753990030931,48.61975454,176.14,176.13,6.75847549]
[1753990033130,48.61975454,176.14,176.13,6.09847549]
[1753990033434,48.61975454,176.14,176.13,6.75847549]
[1753990033607,48.62226972,176.14,176.13,6.75847549]
[1753990034032,54.29957932,176.14,176.11,0.66]
[1753990034215,40.71,176.14,176.13,6.09847549]
[1753990034422,48.62697258,176.14,176.13,6.09847549]
[1753990034635,48.62697258,176.14,176.13,6.75847549]
[1753990035037,54.30427472,176.14,176.13,6.75847549]
[1753990035530,54.30427472,176.14,176.13,6.09847549]
[1753990035734,48.62697258,176.14,176.13,6.09847549]
[1753990036032,54.30427501,176.14,176.12,6.09847549]
[1753990036237,3.75026964,176.13,176.12,6.75847549]
[1753990037841,0.03,176.14,176.12,6.75847549]
[1753990038027,0.03,176.14,176.13,6.75847549]
[1753990039107,0.03,176.14,176.13,12.43609997]
[1753990039336,0.03,176.14,176.13,13.00386241]
[1753990040246,0.03,176.14,176.13,12.43609997]
[1753990040408,0.03,176.14,176.13,6.75847549]
[1753990040609,0.03,176.14,176.1,0.56785917]
[1753990040915,0.03,176.14,176.12,6.09847549]
[1753990041335,0.69,176.14,176.11,6.09847549]
[1753990041532,8.60850652,176.14,176.11,6.09847549]
[1753990041729,4.44026964,176.14,176.11,6.09847549]
[1753990041933,4.44026964,176.14,176.1,6.09847549]
[1753990042514,10.11768654,176.14,176.1,6.09847549]
[1753990042719,6.3674169,176.14,176.1,6.09847549]
[1753990043250,5.7074169,176.14,176.1,6.09847549]
[1753990043549,0.03,176.14,176.11,6.75847549]
[1753990044257,3.78156763,176.14,176.11,6.75847549]
[1753990044448,9.45889882,176.14,176.11,6.75847549]
[1753990044969,9.45889882,176.14,176.1,6.09847549]
[1753990045457,9.45889882,176.14,176.1,0.66]
[1753990045656,6.09847549,176.11,176.06,0.06]
[1753990045859,6.09847549,176.07,176.06,0.06]
[1753990046032,46.73847549,176.07,176.06,0.06]
[1753990047059,47.39847549,176.07,176.06,0.06]
[1753990047570,46.73847549,176.07,176.06,0.06]
[1753990048130,14.1954759,176.12,176.06,6.15847549]
[1753990048339,48.55773603,176.11,176.08,6.09847549]
[1753990048553,4.16641441,176.1,176.08,6.09847549]
[1753990049774,9.84510861,176.1,176.08,6.09847549]
[1753990049962,0.66,176.11,176.08,6.09847549]
[1753990050149,0.03,176.14,176.1,6.09847549]
[1753990050459,0.03,176.14,176.13,12.19695098]
[1753990050852,0.03,176.16,176.13,12.85695098]
[1753990051064,0.03,176.16,176.15,6.09847549]
[1753990051242,0.03,176.16,176.15,11.77545533]
[1753990051441,0.03,176.16,176.15,12.43545533]
[1753990052343,0.03,176.16,176.15,6.75847549]
[1753990053067,0.03,176.16,176.15,10.59158763]
[1753990053363,0.03,176.16,176.15,9.93158763]
[1753990053773,0.03,176.16,176.15,10.59158763]
[1753990054481,0.03,176.16,176.15,9.93158763]
[1753990055479,0.72,176.16,176.15,9.93158763]
[1753990056253,0.72,176.16,176.14,9.93158763]
[1753990056459,40.62,176.15,176.12,9.93158763]
[1753990056762,0.69,176.14,176.12,9.93158763]
[1753990057370,10.11727758,176.14,176.12,9.93158763]
[1753990057570,5.67740941,176.14,176.09,0.7]
[1753990057796,0.69,176.13,176.12,9.93158763]
[1753990058596,41.31,176.15,176.12,9.93158763]
[1753990058777,3.74998592,176.14,176.13,9.93158763]
[1753990059781,40.62,176.15,176.13,10.63158763]
[1753990060091,0.03,176.16,176.14,10.63158763]
[1753990060271,0.03,176.16,176.15,9.93158763]
[1753990061857,0.03,176.16,176.12,0.56779468]
[1753990062108,0.03,176.16,176.14,9.93158763]
[1753990062272,41.31,176.15,176.1,0.06]
[1753990062458,0.69,176.14,176.13,9.93158763]
[1753990063063,40.62,176.15,176.13,9.93158763]
[1753990063369,41.31,176.15,176.14,9.93158763]
[1753990063583,45.05976397,176.15,176.14,9.93158763]
[1753990063763,50.73674381,176.15,176.14,9.93158763]
[1753990063965,44.36976397,176.15,176.14,9.93158763]
[1753990064273,50.04674381,176.15,176.14,9.93158763]
[1753990064472,50.73674381,176.15,176.12,9.93158763]
[1753990064676,4.43958635,176.14,176.11,9.93158763]
[1753990064862,0.69,176.13,176.11,9.93158763]
[1753990065064,0.69,176.13,176.12,9.93158763]
[1753990065677,3.74958635,176.14,176.12,9.93158763]
[1753990065874,3.74958635,176.14,176.13,9.93158763]
[1753990066085,0.69,176.14,176.13,9.93158763]
[1753990066589,3.75000019,176.14,176.13,9.93158763]
[1753990067069,9.42730233,176.14,176.13,9.93158763]
[1753990067271,40.62,176.15,176.13,9.93158763]
[1753990067518,40.62,176.15,176.14,9.93158763]
[1753990068189,44.37081437,176.15,176.14,9.93158763]
[1753990068364,40.62,176.15,176.14,9.93158763]
[1753990068571,44.37186554,176.15,176.14,9.93158763]
[1753990069804,0.03,176.16,176.14,9.93158763]
[1753990069980,0.03,176.16,176.15,9.93158763]
[1753990070304,3.78296255,176.16,176.15,9.93158763]
[1753990071205,3.78296255,176.16,176.15,10.63158763]
[1753990071505,0.03,176.16,176.15,10.63158763]
[1753990071703,0.03,176.16,176.15,16.30856747]
[1753990072402,0.03,176.16,176.15,9.93158763]
[1753990074403,0.03,176.16,176.15,10.63158763]
[1753990074605,0.03,176.19,176.16,16.78468397]
[1753990074807,0.03,176.21,176.18,22.87493116]
[1753990075039,0.03,176.21,176.2,6.09024719]
[1753990075501,0.03,176.21,176.2,6.79024719]
[1753990075699,0.03,176.21,176.2,6.09024719]
[1753990076400,0.03,176.21,176.2,6.79024719]
[1753990077104,0.03,176.21,176.2,10.62616652]
[1753990077297,0.03,176.21,176.2,9.92616652]
[1753990078413,0.03,176.21,176.2,10.62616652]
[1753990078806,0.03,176.21,176.2,16.30153541]
[1753990079011,0.03,176.21,176.2,50.30153541]
[1753990079212,0.03,176.21,176.2,50.86907229]
[1753990080229,0.03,176.21,176.2,50.30153541]
[1753990081006,0.03,176.21,176.2,44.62616652]
[1753990081828,0.72,176.21,176.13,34.7]
[1753990082016,0.72,176.21,176.16,9.92616652]
[1753990082336,5.67536889,176.2,176.16,9.92616652]
[1753990082531,0.69,176.19,176.16,9.92616652]
[1753990082723,0.69,176.19,176.17,9.92616652]
[1753990082911,0.69,176.19,176.18,9.92616652]
[1753990083114,0.03,176.21,176.18,9.92616652]
[1753990083342,0.03,176.21,176.2,9.92616652]
[1753990083811,0.72,176.21,176.2,9.92616652]
[1753990085410,0.7,176.21,176.2,9.92616652]
[1753990085615,6.37504681,176.21,176.19,9.92616652]
[1753990085814,0.67,176.2,176.19,9.92616652]
[1753990086054,0.67,176.2,176.17,9.92616652]
[1753990086351,6.34576101,176.19,176.17,9.92616652]
[1753990086538,0.67,176.18,176.12,6.43784717]
[1753990086838,0.67,176.18,176.12,0.06]
[1753990087148,0.67,176.18,176.16,9.92616652]
[1753990087624,41.28,176.21,176.14,0.7]
[1753990087807,3.7470008,176.2,176.18,9.92616652]
[1753990088013,0.67,176.19,176.16,9.92616652]
[1753990088539,3.7470008,176.2,176.18,9.92616652]
[1753990088540,10.09243463,176.2,176.18,9.92616652]
[1753990088745,0.67,176.19,176.17,9.92616652]
[1753990088935,26.0,176.17,176.12,0.06]
[1753990089252,26.0,176.17,176.13,9.92616652]
[1753990089253,0.67,176.16,176.13,9.92616652]
[1753990089537,26.0,176.17,176.14,9.92616652]
[1753990089538,66.58,176.17,176.14,9.92616652]
[1753990089854,0.67,176.15,176.13,9.92616652]
[1753990090518,0.67,176.14,176.13,9.92616652]
[1753990091451,0.67,176.14,176.12,9.98616652]
[1753990091659,0.67,176.14,176.13,9.92616652]
[1753990092653,0.67,176.14,176.12,0.06]
[1753990092814,13.67361516,176.15,176.12,0.06]
[1753990093016,0.67,176.13,176.12,0.06]
[1753990094068,3.74697767,176.15,176.12,9.98616652]
[1753990094245,0.67,176.14,176.12,9.98616652]
[1753990094775,6.34730214,176.14,176.13,0.06]
[1753990095265,0.67,176.14,176.13,0.06]
[1753990095469,6.34730214,176.14,176.13,0.06]
[1753990096751,20.02136906,176.14,176.13,0.06]
[1753990096959,14.25919585,176.14,176.13,0.06]
[1753990097271,5.67687923,176.16,176.13,9.98616652]
[1753990097448,4.16429951,176.15,176.13,9.98616652]
[1753990097657,8.58226744,176.15,176.13,9.98616652]
[1753990097862,0.67,176.14,176.13,0.06]
[1753990098056,4.83403367,176.14,176.13,0.06]
[1753990098686,10.51133581,176.14,176.13,0.06]
[1753990098891,54.83930374,176.14,176.13,0.06]
[1753990099088,60.94064122,176.14,176.13,0.06]
[1753990099385,48.4920016,176.14,176.13,6.16133748]
[1753990099573,44.32796793,176.14,176.13,6.16133748]
[1753990099756,50.00527007,176.14,176.13,6.16133748]
[1753990099956,40.58,176.14,176.13,6.16133748]
[1753990100183,46.92730214,176.14,176.13,0.06]
[1753990100784,41.25,176.14,176.13,0.06]
[1753990100974,44.32731219,176.14,176.13,0.06]
[1753990101298,40.58,176.14,176.13,0.06]
[1753990101991,9.30765549,176.16,176.13,0.06]
[1753990101992,43.54092209,176.16,176.13,6.16133748]
[1753990102369,32.10133748,176.14,176.13,0.06]
[1753990102581,35.84860228,176.14,176.13,0.06]
[1753990102780,46.35873578,176.14,176.13,0.06]
[1753990103375,67.69521307,176.14,176.13,0.06]
[1753990103563,71.85734306,176.14,176.13,0.06]
[1753990104468,16.78468397,176.13,176.12,0.06]
[1753990104694,76.20723628,176.13,176.12,0.06]
[1753990104902,81.88486076,176.13,176.12,0.06]
[1753990106189,32.10133748,176.12,176.11,0.06]
[1753990106498,44.84255231,176.12,176.11,0.06]
[1753990106793,41.30518313,176.12,176.11,0.06]
[1753990109068,37.14406446,176.12,176.11,0.06]
[1753990109694,41.29931638,176.12,176.11,0.06]
[1753990109903,37.14406446,176.12,176.11,0.06]
[1753990110894,31.04272698,176.12,176.11,0.06]
[1753990111086,20.35938049,176.12,176.11,0.06]
[1753990111486,20.34977583,176.12,176.11,0.06]
[1753990111687,12.44928433,176.12,176.11,0.06]
[1753990111886,20.34045057,176.12,176.11,0.06]
[1753990112198,16.18737309,176.12,176.11,0.06]
[1753990112400,16.18689202,176.12,176.11,0.06]
[1753990113179,9.41555454,176.12,176.11,0.06]
[1753990113404,11.77928433,176.12,176.11,0.06]
[1753990113785,12.44928433,176.12,176.11,0.06]
[1753990114901,16.18628829,176.12,176.11,0.06]
[1753990115297,11.77928433,176.12,176.11,0.06]
[1753990115889,5.67794685,176.12,176.11,0.06]
[1753990116089,9.41357914,176.12,176.11,0.06]
[1753990116695,5.67794685,176.12,176.11,0.77]
[1753990117582,31.67766403,176.13,176.11,6.87133748]
[1753990117882,5.67739008,176.14,176.12,6.81133748]
[1753990118095,5.67739008,176.14,176.13,0.71]
[1753990118293,46.25739008,176.14,176.13,0.71]
[1753990118884,46.25739008,176.14,176.11,6.16133748]
[1753990119408,46.25739008,176.14,176.11,6.87133748]
[1753990120803,46.25739008,176.14,176.11,6.16133748]
[1753990122590,46.25739008,176.14,176.11,6.87133748]
[1753990122828,32.10133748,176.12,176.11,0.06]
[1753990123108,76.40138124,176.12,176.11,0.06]
[1753990123289,77.10138124,176.12,176.11,0.06]
[1753990124187,76.67799061,176.12,176.11,0.06]
[1753990124396,76.67799061,176.12,176.11,1e-08]
[1753990124397,103.72067249,176.12,176.11,1e-08]
[1753990124605,107.87709828,176.12,176.11,1e-08]
[1753990125995,107.87571822,176.12,176.11,1e-08]
[1753990127035,107.87571822,176.12,176.08,0.06]
[1753990127036,122.07058535,176.12,176.08,0.06]
[1753990127197,32.10133748,176.09,176.08,0.06]
[1753990127396,80.55723432,176.09,176.08,0.06]
[1753990127713,81.25723432,176.09,176.08,0.06]
[1753990128097,74.45589684,176.09,176.08,0.06]
[1753990129700,80.13481103,176.09,176.08,0.06]
[1753990130093,39.57481103,176.09,176.08,0.06]
[1753990130296,78.61782326,176.09,176.08,6.16133748]
[1753990130514,66.56,176.09,176.08,6.87133748]
[1753990130921,40.56,176.09,176.08,6.87133748]
[1753990131338,40.56,176.1,176.08,6.87133748]
[1753990131512,40.56,176.1,176.09,6.10133748]
[1753990131723,40.56,176.1,176.09,6.81133748]
[1753990133418,44.30974174,176.1,176.09,6.81133748]
[1753990134007,40.56,176.1,176.09,6.81133748]
[1753990134209,46.2385917,176.1,176.09,6.81133748]
[1753990134622,49.98906052,176.1,176.09,6.81133748]
[1753990134811,49.98906052,176.1,176.09,6.10133748]
[1753990135110,46.2385917,176.1,176.09,6.10133748]
[1753990135508,49.98974157,176.1,176.09,6.10133748]
[1753990135716,54.15731863,176.1,176.09,6.10133748]
[1753990135920,54.15731863,176.1,176.08,0.06]
[1753990136123,4.45114987,176.09,176.08,0.06]
[1753990136307,3.75114987,176.09,176.08,6.87133748]
[1753990136625,40.56,176.1,176.08,6.87133748]
[1753990136924,40.56,176.1,176.09,6.10133748]
[1753990137132,44.31155034,176.1,176.09,6.10133748]
[1753990137817,44.31155034,176.1,176.09,6.81133748]
[1753990138728,48.48034089,176.1,176.09,6.81133748]
[1753990138927,49.99014204,176.1,176.08,0.06]
[1753990139121,46.2385917,176.1,176.08,6.16133748]
[1753990139628,3.75286034,176.09,176.08,6.16133748]
[1753990139834,9.43177453,176.09,176.08,6.16133748]
[1753990140027,3.75286034,176.09,176.08,6.16133748]
[1753990140416,13.60149344,176.09,176.08,0.06]
[1753990140928,18.47245127,176.09,176.08,0.06]
[1753990142327,24.57378875,176.09,176.08,0.06]
[1753990142831,18.47245127,176.09,176.08,0.06]
[1753990144820,16.78468397,176.08,176.06,0.06]
[1753990145015,22.87376797,176.07,176.06,0.06]
[1753990145334,18.87487456,176.07,176.06,0.06]
[1753990145519,16.77243049,176.07,176.06,0.06]
[1753990145724,18.87487456,176.07,176.06,0.06]
[1753990146036,26.0,176.04,176.0,500.0]
[1753990146218,49.14257925,176.03,176.0,500.0]
[1753990146421,3.7547523,176.02,176.0,500.0]
[1753990146617,40.54,176.01,176.0,500.0]
[1753990148130,46.22149536,176.01,176.0,500.0]
[1753990148910,40.54,176.01,176.0,500.0]
[1753990149114,40.54,176.01,176.0,506.82133748]
[1753990149320,40.54,176.02,176.0,506.82133748]
[1753990149539,40.54,176.02,176.01,6.82133748]
[1753990150042,40.54,176.03,176.01,0.72]
[1753990150247,40.54,176.03,176.02,6.10133748]
[1753990150430,40.54,176.03,176.01,6.82133748]
[1753990152620,40.54,176.03,176.02,6.82133748]
[1753990152920,53.00223319,176.03,176.0,500.0]
[1753990153116,6.78133748,176.02,176.0,500.0]
[1753990153328,32.36020448,176.05,176.01,6.82133748]
[1753990153534,40.54,176.04,176.02,6.10133748]
[1753990153871,40.54,176.04,176.02,6.82133748]
[1753990154347,36.62484596,176.09,176.03,6.82133748]
[1753990154555,52.61861106,176.08,176.04,6.10133748]
[1753990154849,12.07861106,176.07,176.05,6.10133748]
[1753990155144,44.28831248,176.06,176.05,6.10133748]
[1753990155349,44.28831248,176.06,176.04,0.72]
[1753990155350,44.28831248,176.06,176.04,6.10133748]
[1753990155549,40.54,176.06,176.04,6.10133748]
[1753990155848,40.54,176.06,176.05,6.10133748]
[1753990156043,44.28828331,176.06,176.05,6.82133748]
[1753990156248,48.45346774,176.06,176.05,6.82133748]
[1753990156551,48.45346774,176.06,176.05,6.10133748]
[1753990156552,44.28828331,176.06,176.05,6.10133748]
[1753990157751,44.28828331,176.06,176.05,6.82133748]
[1753990157934,40.54,176.06,176.05,6.82133748]
[1753990158535,40.54,176.06,176.05,12.50154196]
[1753990158744,40.54,176.08,176.05,6.82133748]
[1753990159036,40.54,176.08,176.07,6.10133748]
[1753990159343,44.28868934,176.08,176.07,6.10133748]
[1753990159927,44.28868934,176.08,176.07,6.82133748]
[1753990160130,44.2887519,176.08,176.07,6.82133748]
[1753990160322,44.2887519,176.08,176.03,6.24883144]
[1753990160542,3.74869584,176.07,176.06,6.10133748]
[1753990160749,3.74869584,176.07,175.98,16.84468397]
[1753990160750,0.68,176.07,176.01,0.72]
[1753990160948,40.54,176.06,175.99,0.72]
[1753990161248,40.54,176.06,176.03,6.10133748]
[1753990161249,4.42826733,176.05,176.03,6.10133748]
[1753990161451,40.54,176.04,176.03,6.10133748]
[1753990162928,41.22,176.04,176.0,500.0]
[1753990163141,0.68,176.03,176.0,500.0]
[1753990163351,41.22,176.04,176.02,6.10133748]
[1753990163573,41.22,176.04,176.03,6.10133748]
[1753990163933,46.90052715,176.04,176.03,6.10133748]
[1753990164646,44.28989239,176.04,176.03,6.10133748]
[1753990164955,40.54,176.04,176.03,6.10133748]
[1753990165642,46.90052715,176.04,176.02,6.10133748]
[1753990165844,40.54,176.04,176.03,6.10133748]
[1753990166047,46.90052715,176.04,176.01,6.10133748]
[1753990166232,10.53139029,176.03,176.0,500.0]
[1753990166433,44.29005281,176.02,176.0,500.0]
[1753990166628,0.68,176.01,176.0,500.0]
[1753990168049,6.36149536,176.01,176.0,500.0]
[1753990168439,46.22126123,176.02,176.0,506.10133748]
[1753990169045,0.68,176.04,176.01,6.82133748]
[1753990169046,5.68058704,176.04,176.01,6.82133748]
[1753990169238,40.54,176.03,176.0,500.0]
[1753990169430,40.54,176.03,176.02,6.10133748]
[1753990171032,40.54,176.03,176.02,6.82133748]
[1753990172242,40.54,176.03,176.02,6.10133748]
[1753990176846,0.03,176.06,176.02,12.46251007]
[1753990177045,0.03,176.06,176.04,6.10133748]
[1753990177250,0.03,176.06,176.05,6.10133748]
[1753990178453,0.03,176.06,176.05,6.78133748]
[1753990179544,0.03,176.06,176.05,6.10133748]
[1753990185651,0.03,176.06,176.05,6.78133748]
[1753990185847,0.03,176.06,176.05,6.10133748]
[1753990187577,3.78412013,176.06,176.05,6.10133748]
[1753990188105,0.03,176.06,176.05,6.10133748]
[1753990189500,0.03,176.06,176.05,6.78133748]
[1753990190294,0.03,176.06,176.05,12.46154196]
[1753990190677,0.03,176.06,176.05,6.10133748]
[1753990191700,0.03,176.06,176.05,6.78133748]
[1753990192504,0.03,176.06,176.05,6.10133748]
[1753990193702,0.03,176.06,176.05,6.78133748]
[1753990195481,0.03,176.06,176.05,6.10133748]
[1753990199087,0.03,176.06,176.04,0.68]
[1753990199287,0.03,176.06,176.05,6.10133748]
[1753990200313,0.03,176.06,176.05,6.78133748]
[1753990200524,0.03,176.1,176.09,26.0]
[1753990200732,0.03,176.12,176.1,16.78468397]
[1753990200933,0.03,176.14,176.11,18.44845454]
[1753990201092,0.03,176.14,176.13,12.20267496]
[1753990201288,0.03,176.14,176.13,6.10133748]
[1753990201491,0.03,176.14,176.13,12.20267496]
[1753990201695,0.03,176.14,176.13,6.10133748]
[1753990201926,0.03,176.14,176.11,6.92606188]
[1753990202220,0.03,176.19,176.14,16.78468397]
[1753990202419,6.39570442,176.19,176.11,0.68]
[1753990202630,6.10133748,176.17,176.07,26.68]
[1753990202814,51.0230487,176.16,176.12,6.10133748]
[1753990203033,16.22002854,176.15,176.1,6.10133748]
[1753990203322,4.44171122,176.14,176.11,6.10133748]
[1753990203523,0.69,176.13,176.11,6.10133748]
[1753990203731,40.48,176.12,176.1,6.10133748]
[1753990203894,41.17,176.12,176.11,6.10133748]
[1753990204304,40.48,176.12,176.11,6.10133748]
[1753990205101,41.16,176.12,176.11,6.10133748]
[1753990205302,41.16,176.12,176.1,6.10133748]
[1753990205514,0.68,176.11,176.1,6.10133748]
[1753990206296,5.6785917,176.1,176.04,31.68045768]
[1753990206495,46.58133748,176.12,176.04,31.68045768]
[1753990206496,41.16,176.09,176.08,6.10133748]
[1753990207095,41.16,176.09,176.07,6.10133748]
[1753990207301,41.16,176.09,176.08,6.10133748]
[1753990207751,40.48,176.09,176.08,6.10133748]
[1753990207927,5.36776747,176.17,176.08,18.60191167]
[1753990208100,40.46,176.17,176.16,6.10133748]
[1753990208432,44.20510526,176.17,176.16,6.10133748]
[1753990208728,44.88510526,176.17,176.16,6.10133748]
[1753990208928,41.14,176.17,176.16,6.10133748]
[1753990209323,46.81633535,176.17,176.16,6.10133748]
[1753990210526,41.14,176.17,176.16,6.10133748]
[1753990210932,46.81634781,176.17,176.13,6.10133748]
[1753990211241,46.81634781,176.17,176.11,6.39818388]
[1753990211242,46.13634781,176.17,176.11,6.39818388]
[1753990211413,40.46,176.17,176.16,6.10133748]
[1753990211620,0.03,176.19,176.16,6.82133748]
[1753990211836,0.03,176.19,176.18,6.10133748]
[1753990212540,0.71,176.19,176.18,6.10133748]
[1753990212855,0.03,176.19,176.18,6.10133748]
[1753990214417,0.03,176.19,176.18,6.82133748]
[1753990214830,0.03,176.19,176.18,6.10133748]
[1753990215037,0.03,176.19,176.16,6.39663778]
[1753990215230,0.03,176.19,176.18,6.10133748]
[1753990218041,0.71,176.19,176.14,5.67725651]
[1753990218242,0.71,176.19,176.14,6.39725651]
[1753990218243,0.68,176.18,176.14,6.39725651]
[1753990218445,0.68,176.18,176.17,6.10133748]
[1753990218853,0.68,176.18,176.12,34.72]
[1753990219058,0.68,176.18,176.16,6.10133748]
[1753990219359,0.68,176.18,176.17,6.10133748]
[1753990220043,6.35601316,176.18,176.17,6.10133748]
[1753990221233,12.45735064,176.18,176.13,6.10133748]
[1753990221434,6.10133748,176.17,176.12,6.10133748]
[1753990221635,41.12,176.16,176.12,6.10133748]
[1753990221839,40.44,176.16,176.12,6.10133748]
[1753990222043,5.67730214,176.14,176.12,6.10133748]
[1753990222239,41.12,176.13,176.12,6.10133748]
[1753990222538,41.12,176.13,176.11,6.10133748]
[1753990222725,0.68,176.12,176.11,6.10133748]